Workbook

Sheet Problem 1
A1: Year | B1: Project A | C1: Project B
A2: 0 | B2: -75000 | C2: =B2 -> -75000
A3: 1 | B3: 5000 | C3: 36000
A4: 2 | B4: 15000 | C4: 27000
A5: 3 | B5: 28000 | C5: 20000
A6: 4 | B6: 35000 | C6: 15000
A7: 5 | B7: 40000 | C7: 10000
A9: WACC | B9: 0.1
A11: Payback Period | B11: =[0]!FAME_Payback(B2:B7) -> 3.771428571 | C11: =[0]!FAME_Payback(C2:C7) -> 2.6
A12: Discounted Payback | B12: =[0]!FAME_Payback(B2:B7,$B$9) -> 4.52806885 | C12: =[0]!FAME_Payback(C2:C7,$B$9) -> 3.48143335
A13: NPV | B13: =NPV($B$9,B3:B7)+B2 -> 11721.28705 | C13: =NPV($B$9,C3:C7)+C2 -> 11522.03339
A14: Profitability Index | B14: =B13/-B2+1 -> 1.156283827 | C14: =C13/-C2+1 -> 1.153627112
A15: IRR | B15: =IRR(B2:B7) -> 0.1456425766 | C15: =IRR(C2:C7) -> 0.1739594553
A16: MIRR | B16: =MIRR(B2:B7,$B$9,$B$9) -> 0.1324149009 | C16: =MIRR(C2:C7,$B$9,$B$9) -> 0.1318940474
A17: Crossover Rate | B17: =IRR(B2:B7-C2:C7) -> 0.1018713028
A19: NPV Profile Data
A20: WACC | B20: NPVA | C20: NPVB
A21: 0 | B21: =NPV($A21,B$3:B$7)+B$2 -> 48000 | C21: =NPV($A21,C$3:C$7)+C$2 -> 33000
A22: 0.02 | B22: =NPV($A22,B$3:B$7)+B$2 -> 39268.34017 | C22: 28007.11092
A23: 0.04 | B23: 31363.1645 | C23: 23399.66347
A24: 0.06 | B24: 24189.87279 | C24: 19138.54037 | D24: =$B$17 -> 0.1018713028 | E24: 0
A25: 0.08 | B25: 17666.38741 | C25: 15189.40606 | D25: =$B$17 -> 0.1018713028 | E25: =NPV(D25,B3:B7)+B2 -> 11192.33116
A26: 0.1 | B26: 11721.28705 | C26: 11522.03339
A27: 0.12 | B27: 6292.247789 | C27: 8109.736526 | D27: 0 | E27: =E$25 -> 11192.33116
A28: 0.14 | B28: 1324.736575 | C28: 4928.891765 | D28: =B17 -> 0.1018713028 | E28: =E$25 -> 11192.33116
A29: 0.16 | B29: -3229.087751 | C29: 1958.531187
A30: 0.18 | B30: -7411.301703 | C30: -820.003077
A31: 0.2 | B31: -11259.00206 | C31: -3423.353909
A32: 0.22 | B32: -14804.97228 | C32: -5866.401817
A33: 0.24 | B33: -18078.25003 | C33: -8162.481835
A34: 0.26 | B34: -21104.6118 | C34: -10323.57031
A35: 0.28 | B35: -23906.98791 | C35: -12360.44616
A36: 0.3 | B36: -26505.81885 | C36: -14282.83054
A37: 0.32 | B37: -28919.36207 | C37: -16099.50806
A38: 0.34 | B38: =NPV($A38,B$3:B$7)+B$2 -> -31163.95663 | C38: -17818.43223
A39: 0.36 | B39: -33254.25223 | C39: -19446.81753
A40: 0.38 | B40: -35203.40782 | C40: -20991.21983
A41: 0.4 | B41: -37023.26412 | C41: -22457.60695
A42: 0.42 | B42: -38724.49394 | C42: -23851.42055
A43: 0.44 | B43: -40316.73344 | C43: -25177.63071
A44: 0.46 | B44: -41808.69682 | C44: -26440.78398
A45: 0.48 | B45: -43208.27697 | C45: -27645.04591
A46: 0.5 | B46: -44522.63374 | C46: -28794.23868
A47: 0.52 | B47: -45758.27176 | C47: -29891.87453
A48: 0.54 | B48: -46921.10884 | C48: -30941.18541
A49: 0.56 | B49: -48016.53656 | C49: -31945.14949
A50: 0.58 | B50: -49049.47378 | C50: -32906.5147
A51: 0.6 | B51: -50024.41406 | C51: -33827.81982

Sheet Problem 2
A1: Ocean City Ride Analysis
A2: Cost of Equipment | B2: 1800000
A3: Installation Charge | B3: 180000
A4: Life in Years | B4: 6
A5: MACRS Class | B5: 5
A6: Riders per Ride | B6: 16
A7: Rides per Day | B7: 150
A8: Days per Season | B8: 120
A9: Year 1 Ticket Price | B9: 4
A10: Ticket Price Increase | B10: 0.04
A11: Variable Cost per Rider | B11: 1.4
A12: Annual Fixed Costs | B12: 275000
A13: Salvage Value | B13: 450000
A14: Removal Cost | B14: 75000
A15: WACC | B15: 0.12
A16: Tax Rate | B16: 0.35
A18: Ocean City Log Flume Operating Cash Flow Statement
B19: 0 | C19: 1 | D19: 2 | E19: 3 | F19: 4 | G19: 5 | H19: 6
A20: Ticket Price | C20: =$B$9*(1+$B$10)^(C19-1) -> 4 | D20: 4.16 | E20: 4.3264 | F20: 4.499456 | G20: 4.67943424 | H20: 4.86661161
A21: Revenue | C21: =$B$6*$B$7*$B$8*C20 -> 1152000 | D21: =$B$6*$B$7*$B$8*D20 -> 1198080 | E21: 1246003.2 | F21: 1295843.328 | G21: 1347677.061 | H21: 1401584.144
A22: Variable Cost | C22: =$B$11*$B$6*$B$7*$B$8 -> 403200 | D22: 403200 | E22: 403200 | F22: 403200 | G22: 403200 | H22: 403200
A23: Fixed Cost | C23: =$B$12 -> 275000 | D23: 275000 | E23: 275000 | F23: 275000 | G23: 275000 | H23: 275000
A24: Depreciation | C24: =IFERROR([0]!FAME_MACRS($B$2+$B$3,$B$5,C19,FALSE),0) -> 396000 | D24: =IFERROR([0]!FAME_MACRS($B$2+$B$3,$B$5,D19,FALSE),0) -> 633600 | E24: =IFERROR([0]!FAME_MACRS($B$2+$B$3,$B$5,E19,FALSE),0) -> 380160 | F24: =IFERROR([0]!FAME_MACRS($B$2+$B$3,$B$5,F19,FALSE),0) -> 228096 | G24: =IFERROR([0]!FAME_MACRS($B$2+$B$3,$B$5,G19,FALSE),0) -> 228096 | H24: =IFERROR([0]!FAME_MACRS($B$2+$B$3,$B$5,H19,FALSE),0) -> 114048
A25: Pre-Tax Cash Flow | C25: =C21-SUM(C22:C24) -> 77800 | D25: -113720 | E25: 187643.2 | F25: 389547.328 | G25: 441381.0611 | H25: 609336.1436
A26: Taxes | C26: =C25*$B$16 -> 27230 | D26: -39802 | E26: 65675.12 | F26: 136341.5648 | G26: 154483.3714 | H26: 213267.6502
A27: Add: Depreciation | C27: =C24 -> 396000 | D27: 633600 | E27: 380160 | F27: 228096 | G27: 228096 | H27: 114048
A28: Terminal Cash Flow | H28: =B13-(B13-(B2+B3-SUM(C24:H24)))*B16-B14*(1-B16) -> 243750
A29: After-Tax Cash Flows | B29: =-(B2+B3) -> -1980000 | C29: =C25-C26+C27+C28 -> 446570 | D29: 559682 | E29: 502128.08 | F29: 481301.7632 | G29: 514993.6897 | H29: 753866.4933
A31: Net Present Value | B31: =NPV(B15,C29:H29)+B29 -> 202332.5758
A32: IRR | B32: =IRR(B29:H29) -> 0.153324147
A33: MIRR | B33: =MIRR(B29:H29,B15,B15) -> 0.1383102509

Sheet Problem 3
A1: Auraria Pet Foods Company
B2: IO | C2: ATCF1 | D2: ATCF2 | E2: ATCF3 | F2: ATCF4 | G2: ATCF5
A3: New Machine | B3: -90000 | C3: 35000 | D3: =C3*(1+$B$7) -> 37800 | E3: =D3*(1+$B$7) -> 40824 | F3: =E3*(1+$B$7) -> 44089.92 | G3: =F3*(1+$B$7) -> 47617.1136
A4: Old Machine | B4: -70000 | C4: 32000 | D4: =C4*(1+$B$8) -> 33920 | E4: =D4*(1+$B$8) -> 35955.2 | F4: =E4*(1+$B$8) -> 38112.512 | G4: =F4*(1+$B$8) -> 40399.26272
A5: Net Cash Flows | B5: =B3-B4 -> -20000 | C5: 3000 | D5: 3880 | E5: 4868.8 | F5: 5977.408 | G5: 7217.85088
A7: New Machine CF Growth | B7: 0.08
A8: Old Machine CF Growth | B8: 0.06
A9: WACC | B9: 0.15
B11: Old Machine | C11: New Machine | D11: Difference
A12: Payback Period | B12: =[0]!FAME_Payback(B4:G4,0) -> 2.113474566 | C12: =[0]!FAME_Payback(B3:G3,0) -> 2.421320792 | D12: =[0]!FAME_Payback(B5:G5,0) -> 4.315023443
A13: Disc. Payback Period | B13: =[0]!FAME_Payback(B4:G4,B9) -> 2.699015789 | C13: =[0]!FAME_Payback(B3:G3,B9) -> 3.164251578 | D13: =[0]!FAME_Payback(B5:G5,B9) -> Payback > Life
A14: Net Present Value | B14: =NPV(B9,C4:G4)+B4 -> 48992.13377 | C14: =NPV(B9,C3:G3)+B3 -> 44742.13185 | D14: =NPV(B9,C5:G5)+B5 -> -4250.001926 | E14: =C14-B14 -> -4250.001926
A15: Profitability Index | B15: =B14/-B4+1 -> 1.699887625 | C15: =C14/-B3+1 -> 1.497134798 | D15: =D14/-B5+1 -> 0.7874999037
A16: Internal Rate of Return | B16: =IRR(B4:G4) -> 0.4056720197 | C16: =IRR(B3:G3) -> 0.3332486479 | D16: =IRR(B5:G5) -> 0.06794140882
A17: Modified IRR | B17: =MIRR(B4:G4,B9,B9) -> 0.2787389175 | C17: =MIRR(B3:G3,B9,B9) -> 0.2466657304 | D17: =MIRR(B5:G5,B9,B9) -> 0.09634677197
A18: Crossover Rate | D18: =IRR(B3:G3-B4:G4) -> 0.06794140882
A44: WACC | B44: NPVOld | C44: NPVNew | D44: NPVDiff
A45: 0 | B45: =NPV(A45,$C$4:$G$4)+$B$4 -> 110386.9747 | C45: =NPV(A45,$C$3:$G$3)+$B$3 -> 115331.0336 | D45: =NPV(A45,$C$5:$G$5)+$B$5 -> 4944.05888
A46: 0.02 | B46: =NPV(A46,$C$4:$G$4)+$B$4 -> 99657.70891 | C46: =NPV(A46,$C$3:$G$3)+$B$3 -> 102975.8302 | D46: =NPV(A46,$C$5:$G$5)+$B$5 -> 3318.121287
A47: 0.04 | B47: 89878.2035 | C47: 91720.50316 | D47: 1842.299663
A48: 0.06 | B48: 80943.39623 | C48: 81442.97452 | D48: 499.5782917
A49: 0.08 | B49: 72761.85287 | C49: 72037.03704 | D49: -724.8158344 | F49: =D16 -> 0.06794140882 | G49: 0
A50: 0.1 | B50: 65253.76304 | C50: 63410.01645 | D50: -1843.74659 | F50: =D16 -> 0.06794140882 | G50: =NPV(F50,$C$3:$G$3)+$B$3 -> 77609.26874
A51: 0.12 | B51: 58349.26307 | C51: 55480.81569 | D51: -2868.44738
A52: 0.14 | B52: 51987.02766 | C52: 48178.27289 | D52: -3808.754766 | F52: 0 | G52: =G50 -> 77609.26874
A53: 0.16 | B53: 46113.08318 | C53: 41439.77819 | D53: -4673.304991 | F53: =F50 -> 0.06794140882 | G53: =G50 -> 77609.26874
A54: 0.18 | B54: 40679.80444 | C54: 35210.10459 | D54: -5469.699849
A55: 0.2 | B55: 35645.06379 | C55: 29440.41667 | D55: -6204.647119
A56: 0.22 | B56: 30971.50733 | C56: 24087.42749 | D56: -6884.079842
A57: 0.24 | B57: 26625.93732 | C57: 19112.67942 | D57: -7513.257903
A58: 0.26 | B58: 22578.78365 | C58: 14481.92883 | D58: -8096.854823
A59: 0.28 | B59: 18803.65044 | C59: 10164.61834 | D59: -8639.032096
A60: 0.3 | B60: 15276.92586 | C60: 6133.422822 | D60: -9143.503034

Sheet Problem 4
A1: Chicago Turkey Data
B2: Old Situation | C2: New Situation
A3: Turkeys per Year | B3: 500000 | C3: =B3 -> 500000
A4: Cost per Turkey | B4: 7 | C4: 6
A5: Shipping Cost per Turkey | B5: 1 | C5: 1.5
A6: Selling Price | B6: 12 | C6: =B6 -> 12
A7: Total Cost per Turkey | B7: =B4+B5 -> 8 | C7: =C4+C5 -> 7.5
A8: Additional Gross Profit per Turkey | C8: =(C6-C7)-(B6-B7) -> 0.5
A9: Investment in Additional Turkeys | C9: 15000
A10: Land Cost | C10: 150000
A11: Buildings Cost | C11: 300000
A12: Labor Expense | B12: 0 | C12: 130000
A13: Depreciation Salvage Value (Buildings) | C13: 100000
A14: Annual Depreciation Expense | C14: =(C11-C13)/C17 -> 40000
A15: Actual Salvage Value (Land) | C15: 200000
A16: Actual Salvage Value (Buildings) | C16: 100000
A17: Life of Project | C17: 5
A18: Tax Rate | B18: 0.35
A19: Weighted Average Cost of Capital | B19: 0.11
D20: Period | E20: Cash Flow
A21: Initial Outlay | B21: =SUM(C9:C11) -> 465000 | D21: 0 | E21: =-B21 -> -465000
A22: Annual After-tax Cash Flow | B22: =(C8*C3-C12)*(1-B18)+(C14*B18) -> 92000 | D22: 1 | E22: =$B$22 -> 92000
A23: Terminal Cash Flow | B23: =C16-(C16-C13)*B18+C15-(C15-C10)*B18+C9 -> 297500 | D23: 2 | E23: =$B$22 -> 92000
D24: 3 | E24: =$B$22 -> 92000
D25: 4 | E25: =$B$22 -> 92000
D26: 5 | E26: =B22+B23 -> 389500
A27: Profitability Measures
A28: Payback Period | B28: =[0]!FAME_Payback(E21:E26) -> 4.249037227
A29: Discounted Payback | B29: =[0]!FAME_Payback(E21:E26,B19) -> 4.776878933
A30: NPV | B30: =NPV(B19,E22:E26)+E21 -> 51574.29572
A31: Profitability Index | B31: =B30/B21+1 -> 1.110912464
A32: IRR | B32: =IRR(E21:E26) -> 0.143759416
A33: MIRR | B33: =MIRR(E21:E26,B19,B19) -> 0.1335976754

Sheet Scenario Summary
B2: Scenario Summary
D3: Best Case | E3: Expected Case | F3: Worst Case
D4: Created by Timothy R. Mayes, Ph.D. on 6/23/2000 Modified by Timothy R. Mayes, Ph.D. on 6/23/2000 | E4: Created by Timothy R. Mayes, Ph.D. on 6/23/2000 Modified by Timothy R. Mayes, Ph.D. on 5/19/2006 | F4: Created by Timothy R. Mayes, Ph.D. on 6/23/2000
B5: Changing Cells:
C6: ='Problem 4'!A12 -> Labor Expense | D6: 100000 | E6: 130000 | F6: 140000
C7: ='Problem 4'!A15 -> Actual Salvage Value (Land) | D7: 300000 | E7: 200000 | F7: 100000
C8: ='Problem 4'!A16 -> Actual Salvage Value (Buildings) | D8: 150000 | E8: 100000 | F8: 50000
B9: Result Cells:
C10: ='Problem 4'!A28 -> Payback Period | D10: 4.03751234 | E10: 4.249037227 | F10: 4.430823117
C11: ='Problem 4'!A29 -> Discounted Payback | D11: 4.396154412 | E11: 4.776878933 | F11: Payback > Life
C12: ='Problem 4'!A30 -> NPV | D12: 181505.7921 | E12: 51574.29572 | F12: -30310.53938
C13: ='Problem 4'!A31 -> Profitability Index | D13: 1.390335037 | E13: 1.110912464 | F13: 0.9348160443
C14: ='Problem 4'!A32 -> IRR | D14: 0.2203478455 | E14: 0.143759416 | F14: 0.08832855539
C15: ='Problem 4'!A33 -> MIRR | D15: 0.1856237005 | E15: 0.1335976754 | F15: 0.09513639013
B16: Notes: Current Values column represents values of changing cells at
B17: time Scenario Summary Report was created. Changing cells for each
B18: scenario are highlighted in gray.

Sheet Problem 5a
A1: Eaton Medical Devices
A2: Optimal Capital Budget
A3: Under Capital Rationing
A4: Project | B4: Cost | C4: NPV | D4: Include
A5: A | B5: 628200 | C5: 72658 | D5: 1
A6: B | B6: 352100 | C6: 36418 | D6: 1
A7: C | B7: 1245600 | C7: 212150 | D7: 1
A8: D | B8: 814300 | C8: 70925 | D8: 1
A9: E | B9: 124500 | C9: 11400 | D9: 0
A10: F | B10: 985000 | C10: 56842 | D10: 1
A11: G | B11: 2356400 | C11: 93600 | D11: 0
A12: H | B12: 226900 | C12: 65350 | D12: 1
A13: I | B13: 1650000 | C13: 48842 | D13: 0
A14: J | B14: 714650 | C14: 39815 | D14: 1
A15: Total | B15: =SUM(B5:B14*D5:D14) -> 4966750 | C15: =SUM(C5:C14*D5:D14) -> 554158 | D15: =SUM(D5:D14) -> 7
A16: Constraint | B16: 5000000

Sheet Problem 5b
A1: Eaton Medical Devices
A2: Optimal Capital Budget
A3: Under Capital Rationing
A4: Project | B4: Cost | C4: NPV | D4: Include
A5: A | B5: 628200 | C5: 72658 | D5: 1
A6: B | B6: 352100 | C6: 36418 | D6: 0
A7: C | B7: 1245600 | C7: 212150 | D7: 1
A8: D | B8: 814300 | C8: 70925 | D8: 1
A9: E | B9: 124500 | C9: 11400 | D9: 1
A10: F | B10: 985000 | C10: 56842 | D10: 1
A11: G | B11: 2356400 | C11: 93600 | D11: 0
A12: H | B12: 226900 | C12: 65350 | D12: 1
A13: I | B13: 1650000 | C13: 48842 | D13: 0
A14: J | B14: 714650 | C14: 39815 | D14: 1
A15: Total | B15: =SUM(B5:B14*D5:D14) -> 4739150 | C15: =SUM(C5:C14*D5:D14) -> 529140 | D15: =SUM(D5:D14) -> 7
A16: Constraint | B16: 5000000
A18: Sum of A and B | B18: =SUM(D5:D6) -> 1

Sheet Problem 5c
A1: Eaton Medical Devices
A2: Optimal Capital Budget
A3: Under Capital Rationing
A4: Project | B4: Cost | C4: NPV | D4: Include
A5: A | B5: 628200 | C5: 72658 | D5: 1
A6: B | B6: 352100 | C6: 36418 | D6: 1
A7: C | B7: 1245600 | C7: 212150 | D7: 1
A8: D | B8: 814300 | C8: 70925 | D8: 1
A9: E | B9: 124500 | C9: 11400 | D9: 0
A10: F | B10: 985000 | C10: 56842 | D10: 0
A11: G | B11: 2356400 | C11: 93600 | D11: 0
A12: H | B12: 226900 | C12: 65350 | D12: 1
A13: I | B13: 1650000 | C13: 48842 | D13: 1
A14: J | B14: 714650 | C14: 39815 | D14: 0
A15: Total | B15: =SUM(B5:B14*D5:D14) -> 4917100 | C15: =SUM(C5:C14*D5:D14) -> 506343 | D15: =SUM(D5:D14) -> 6
A16: Constraint | B16: 5000000
